Cogmind - Beta 17 @@@ ROGUE MODE // 2026.06.24 @ 23:20:56 Player: jumpy Result: Destroyed by H-55 Commando with Gauss Rifle Performance ------------- Evolutions (1) 500 Regions Visited (2) 400 Robots Destroyed (31) 155 Value Destroyed (646) 646 Prototype IDs (3) 60 Alien Tech Used (0) 0 Bonus (5750) 5750 TOTAL SCORE: 7511 Bonus ------- Prayed to X0-1V1 5000 Major X0-1V1 Interference 750 Cogmind --------- Core Integrity 0/200 Matter 414/900 Energy 99/100 System Corruption 0% Temperature Cool (0) Movement Treading (200) Ox1 Location -9/Materials Parts ------- > --- POWER (1) -------- (None) > --- PROPULSION (3) --- Light Treads > --- UTILITY (3) ------ Large Storage Unit X0-1V1's Piety Tracker > --- WEAPON (2) ------- Great Maul Great Maul > --- INVENTORY (15) --- Ion Engine Improved Ion Engine Wheel Improved Terrain Scanner Seismic Detector Medium Laser Light Assault Rifle Mining Laser Great Maul Peak State ------------ > --- POWER ------------ Light Nuclear Core > --- PROPULSION ------- Aluminum Leg Aluminum Leg Aluminum Leg > --- UTILITY ---------- Large Storage Unit Seismic Detector X0-1V1's Piety Tracker > --- WEAPON ----------- Great Maul Great Maul > --- INVENTORY -------- Ion Engine Improved Ion Engine Wheel Wheel Improved Terrain Scanner Seismic Detector Medium Laser Small Laser Light Assault Rifle Mining Laser [Rating: 28] Favorites ----------- Power Ion Engine Engine Ion Engine Power Core Light Nuclear Core Propulsion Aluminum Leg Treads Light Treads Leg Aluminum Leg Wheel Wheel Utility Large Storage Unit Device Seismic Detector Storage Large Storage Unit Weapon Medium Laser Energy Gun Medium Laser Ballistic Gun Light Assault Rifle Impact Weapon Great Maul Build | -11 -10 -9 ------- Run | Yrd Mat Mat Slots Evolved 2 | . . 2 Power . | . . . Propulsion 1 | . . 1 Utility 1 | . . 1 Weapon . | . . . Parts Attached 23 | 8 3 12 Power 4 | 1 1 2 Engine 3 | 1 1 1 Core 1 | . . 1 Reactor . | . . . Propulsion 7 | 2 1 4 Treads 2 | . . 2 Leg 3 | 2 1 . Wheel 2 | . . 2 Hover . | . . . Flight . | . . . Utility 7 | 2 1 4 Device 4 | 1 . 3 Storage 3 | 1 1 1 Processor . | . . . Hackware . | . . . Protection . | . . . Artifact . | . . . Weapon 5 | 3 . 2 Energy Gun 2 | 2 . . Energy Cannon . | . . . Ballistic Gun 1 | 1 . . Ballistic Cannon . | . . . Launcher . | . . . Special Weapon . | . . . Impact Weapon 2 | . . 2 Slashing Weapon . | . . . Piercing Weapon . | . . . Special Melee Weapon . | . . . Unidentified Prototypes 1 | . . 1 Parts Lost 8 | . . 8 Power 1 | . . 1 Propulsion 4 | . . 4 Utility 3 | . . 3 Weapon . | . . . Highest Loss Streak 5 | . . 5 To Critical Strikes . | . . . Average Backups 7 | 4 7 8 Power 1 | . 1 1 Propulsion 2 | 1 2 1 Utility 1 | . 2 2 Weapon 2 | 1 2 3 Tool/Special . | . . . Unused Backups 5 | . . 5 Power 1 | . . 1 Propulsion . | . . . Utility 2 | . . 2 Weapon 2 | . . 2 Tool/Special . | . . . Average Slot Usage (%) 89 | . 100 75 Engine 9 | . 14 2 Treads 5 | . . 12 Leg 20 | . 28 10 Device 13 | . 14 13 Storage 12 | . 14 11 Energy Gun 18 | . 28 5 Impact Weapon 6 | . . 16 Peak Build Rating 28 | 7 9 28 Average Rating 12 | 5 7 21 On Entrance 5 | . 7 9 Avg Prop Armor Cover (%) . | . . . Naked Turns . | . . . Heaviest Build 35 | 14 29 35 Greatest Support 46 | 20 20 46 Greatest Overweight (x) 1 | . 1 1 Average Overweight (x) . | . . . Largest Inventory Capacity 15 | 8 15 15 Average Capacity 13 | 7 13 15 Most Carried 10 | 7 9 10 Average Carried 7 | 4 7 8 Final Capacity 15 | 8 15 15 Final Carried 9 | 7 9 9 Class Distribution -------------------- 100% | Mutant Dominant Class ---------------- Mutant | -10/Materials Mutant | -9/Materials Resources | -11 -10 -9 ----------- Run | Yrd Mat Mat Matter Collected 584 | 280 50 254 Remotely . | . . . Salvage Created 1019 | 183 81 755 Parts 63 | 21 4 38 Haulers Intercepted 1 | . 1 . Recyclers Shooed . | . . . Parts Field Recycled . | . . . Retrieved Matter . | . . . Parts Self-Destructed . | . . . Prevented . | . . . Parts Restored . | . . . Kills | -11 -10 -9 ------- Run | Yrd Mat Mat Combat Hostiles Destroyed 14 | . 1 13 Melee 7 | . . 7 Guns 4 | . 1 3 Classes Destroyed 11 | 3 2 6 Worker 3 | 2 . 1 Builder 1 | . . 1 Tunneler 6 | 5 . 1 Hauler 1 | . 1 . Recycler 4 | 1 . 3 Mechanic 1 | . . 1 Watcher 1 | . . 1 Swarmer 1 | . . 1 Grunt 7 | . 1 6 Sentry 5 | . . 5 Hunter 1 | . . 1 Best Kill Streak 8 | 3 1 8 Combat Bots Only 2 | . 1 2 Max Kills in Single Turn 6 | 2 1 6 Gunslinging . | . . . Exploded . | . . . Melee 1 | . . 1 Uniques/NPCs Destroyed . | . . . Combat | -11 -10 -9 -------- Run | Yrd Mat Mat Hostile Shots Fired 91 | . 4 87 Missed 26 | . . 26 Hits 65 | . 4 61 Projectile 65 | . 4 61 Critical Strikes 3 | . . 3 Damage Taken 991 | . 44 947 Core 270 | . . 270 Absorbed by Shields . | . . . Core Remaining (%) 100 | 100 100 . Volleys Fired 40 | 24 9 7 Largest 2 | 2 2 2 Hottest 90 | 90 90 90 Shots Fired 80 | 48 18 14 Gun 80 | 48 18 14 Cannon . | . . . Launcher . | . . . Special . | . . . Kinetic . | . . . Thermal 80 | 48 18 14 Explosive . | . . . Electromagnetic . | . . . Robot Hit Streak 12 | 12 11 7 Robot Miss Streak 3 | 3 1 2 Penetration Max . | . . . Secondary Targets . | . . . Shots Hit Robots 77 | 29 15 33 Core Hits 30 | 9 2 19 Critical Kills 1 | . . 1 Critical Parts Destroyed 3 | . . 3 Critical Strikes 12 | 4 1 7 Burn 7 | 4 1 2 Smash 5 | . . 5 Melee Attacks 35 | . . 35 Impact 35 | . . 35 Slashing . | . . . Piercing . | . . . Sneak Attacks 1 | . . 1 Combat Hostiles . | . . . Follow-up Attacks 3 | . . 3 Damage Inflicted 2145 | 349 174 1622 Guns 647 | 349 174 124 Cannons . | . . . Explosions 521 | . . 521 Melee 977 | . . 977 Ramming . | . . . Kinetic . | . . . Thermal 647 | 349 174 124 Explosive 521 | . . 521 Electromagnetic . | . . . Impact 977 | . . 977 Slashing . | . . . Piercing . | . . . Highest Corruption . | . . . Average Corruption . | . . . Corruption Purged . | . . . Corruption Blocked . | . . . Overload Shots . | . . . Overflow Damage 220 | . . 220 Projectiles . | . . . Explosions 12 | . . 12 Melee 208 | . . 208 Knockbacks 2 | . . 2 Impact 2 | . . 2 Kinetic . | . . . Secondary . | . . . Self-Inflicted Damage 87 | . . 87 Shots 1 | . . 1 Rammed . | . . . Targets Rammed . | . . . Kicked . | . . . Crushed . | . . . Highest Temperature 186 | 142 172 186 Average Temperature 55 | 41 74 77 Received Heat Transfer 312 | . 24 288 Siege Activations . | . . . Martial Activations . | . . . Shielding Activations . | . . . Robots Disrupted . | . . . Combat Hostiles . | . . . Robots Corrupted 5 | . . 5 Combat Hostiles 3 | . . 3 Parts Fried 2 | . . 2 Impact Corruptions 9 | . . 9 Robots Melted 1 | . 1 . Combat Hostiles . | . . . Parts Melted 6 | 3 . 3 Heat Transferred 2229 | 1226 545 458 Parts Sabotaged . | . . . Parts Stolen . | . . . Parts Stripped . | . . . Power Chain Reactions . | . . . Alert | -11 -10 -9 ------- Run | Yrd Mat Mat Maximum Alert Level . | . . . Low Security (%) 100 | 100 100 100 Level 1 . | . . . Level 2 . | . . . Level 3 . | . . . Level 4 . | . . . Level 5 . | . . . High Security . | . . . Max Security . | . . . Peak Influence 83 | 10 36 83 Initial . | . . . Average 15 | 1 2 37 Influence Increases 580 | 40 87 453 Destroy 0b10 Robot/C 280 | . 20 260 Destroy 0b10 Robot/NC 85 | 40 5 40 Destroy Leader 84 | . 2 82 Successful Hack 54 | . 45 9 Destroy Structure 17 | . . 17 Lose Combat Pursuer 60 | . 15 45 Influence Decreases 497 | 40 87 370 Time Decay 407 | 40 87 280 Lost Part 50 | . . 50 Lost Ally 40 | . . 40 Squads Dispatched 2 | . . 2 Investigation . | . . . Extermination . | . . . Reinforcement 2 | . . 2 Assault . | . . . Garrison . | . . . Intercept . | . . . Searches Triggered . | . . . Construction Impeded . | . . . Haulers Reinforced . | . . . Active Scanning Responses . | . . . Cargo Convoy Interrupts . | . . . Stealth | -11 -10 -9 --------- Run | Yrd Mat Mat Distress Signals 3 | . 1 2 Communications Jammed . | . . . Distress Signals . | . . . Times Spotted 27 | . 2 25 Peak Tracking Total 4 | . 3 4 Tactical Retreats 3 | . 1 2 Traps | -11 -10 -9 ------- Run | Yrd Mat Mat Traps Triggered 3 | . 1 2 Indirectly . | . . . Trap Hack Attempts . | . . . Triggered . | . . . Disarmed . | . . . Reprogrammed . | . . . Reused . | . . . Traps Extracted . | . . . Installed . | . . . Triggered . | . . . Machines | -11 -10 -9 ---------- Run | Yrd Mat Mat Machines Disabled . | . . . Max in Single Turn . | . . . Machines Repaired . | . . . Machines Dismantled . | . . . Machines Sabotaged . | . . . Overloaded Fab Kills . | . . . Hacking | -11 -10 -9 --------- Run | Yrd Mat Mat Machines Accessed 6 | . 3 3 Terminals 5 | . 3 2 Fabricators . | . . . Repair Stations . | . . . Recycling Units . | . . . Scanalyzers 1 | . . 1 Garrison Access . | . . . Total Hacks 25 | . 15 10 Successful 11 | . 7 4 Failed 12 | . 7 5 Catastrophic . | . . . Database Lockouts 2 | . 1 1 Manual 21 | . 14 7 Terminals 23 | . 15 8 Fabricators . | . . . Repair Stations . | . . . Recycling Units . | . . . Scanalyzers 2 | . . 2 Garrison Access . | . . . Terminal Hacks 3 | . 2 1 Robot Analysis 1 | . 1 . Prototype ID Bank 1 | . . 1 Zone Layout 1 | . 1 . Fabricator Hacks . | . . . Repair Station Hacks . | . . . Recycling Unit Hacks . | . . . Scanalyzer 1 | . . 1 Retrieve Study 1 | . . 1 Garrison Access Hacks . | . . . Unauthorized Hacks 7 | . 5 2 Terminals 7 | . 5 2 Botnet 4 | . 3 1 Skim 3 | . 2 1 Fabricators . | . . . Repair Stations . | . . . Recycling Units . | . . . Scanalyzers . | . . . Garrison Access . | . . . Data Cores Recovered . | . . . Used . | . . . Hacking Detections 5 | . 3 2 Full Trace Events . | . . . Feedback Events . | . . . Feedback Blocked . | . . . Robot Schematics Acquired . | . . . Robots Built . | . . . Authchips . | . . . Time . | . . . Total Robot Build Rating . | . . . Part Schematics Acquired . | . . . Parts Built . | . . . Authchips . | . . . Time . | . . . Total Part Build Rating . | . . . Part Studies Acquired 1 | . . 1 Parts Repaired . | . . . Time . | . . . Parts Recycled . | . . . Recycled Matter . | . . . Retrieved Matter . | . . . Retrieved Components . | . . . Parts Scanalyzed . | . . . Part Schematics Acquired . | . . . Parts Damaged . | . . . Bothacking | -11 -10 -9 ------------ Run | Yrd Mat Mat Used RIF Installer . | . . . Robots Hacked . | . . . Non-combat . | . . . Combat . | . . . Robot Hacks Applied . | . . . Relay Couplers Released . | . . . Fabnet Peak Effective % . | . . . Robots Rewired . | . . . Allies Hacked . | . . . Hacks Repelled . | . . . Allies | -11 -10 -9 -------- Run | Yrd Mat Mat Total Allies 3 | . . 3 Largest Group 3 | . . 3 Highest-Rated Group 24 | . . 24 Highest-Rated Ally 8 | . . 8 Total Orders . | . . . Ally Attacks 7 | . . 7 Total Damage 68 | . . 68 Kills . | . . . Allies Corrupted . | . . . Allies Melted . | . . . X0-1V1 Amusement Gains 88 | . 8 80 Good Acts 8 | . . 8 Bad Acts 2 | . . 2 Intel | -11 -10 -9 ------- Run | Yrd Mat Mat Active Infowar (turns) 1287 | 67 951 269 Seismic 1287 | 67 951 269 Robot Analysis Total 1 | . 1 . Derelict Logs Recovered . | . . . Drone Launches . | . . . Drone Recoveries . | . . . Exploration | -11 -10 -9 ------------- Run | Yrd Mat Mat Turns Passed 1917 | 272 951 694 Spaces Moved 853 | 150 400 303 Core 13 | 13 . . Treads 189 | . . 189 Legs 630 | 137 400 93 Wheels 21 | . . 21 Hover . | . . . Flight . | . . . Fastest Speed 50 | 50 120 95 Average Speed 156 | 113 171 158 Slowest Speed 240 | 120 190 240 Overloaded Moves . | . . . Propulsion Burnouts . | . . . Robots Hopped . | . . . Potential Cave-ins . | . . . Cave-ins Triggered . | . . . Exploration Rate (%) 37 | 7 61 44 Regions Visited 2 Branch Regions . Pre-discovered Areas . | . . . Known Exits Taken . | . . . Unknown Exits Taken 2 | 1 1 . Scrap Searched . | . . . Spaces Dug . | . . . Terrain Destroyed 23 | . . 23 Melee . | . . . Projectile . | . . . AOE 23 | . . 23 Terrain Rammed . | . . . Walls Destroyed . | . . . Machines Disabled . | . . . Actions | -11 -10 -9 --------- Run | Yrd Mat Mat Total 1285 | 199 648 438 Wait 316 | 11 232 73 Move 851 | 149 399 303 Hop . | . . . Pick Up 11 | 7 1 3 Fast Attach 18 | 7 2 9 Attach 4 | . . 4 Detach 1 | . . 1 Swap 9 | 1 3 5 Drop 5 | . 2 3 Fire 40 | 24 9 7 Melee 30 | . . 30 Ram . | . . . Kick . | . . . Crush . | . . . Escape Stasis . | . . . Rewire . | . . . Trap . | . . . Miscellaneous . | . . . Route ------- -11/Scrapyard -10/Materials (discovered 4 exits: *Mat x2 / [*Min] / [*Sub]) -9/Materials (discovered 1 exit: Mat) History --------- Turn | Location | Event 6 | -11/Scrapyard | Discovered new exit (range 14) 273 | -11/Scrapyard | Entered Materials 312 | -10/Materials | Build established: Mutant 320 | -10/Materials | Discovered new exit (range 6) 403 | -10/Materials | Discovered new exit (range 10) 649 | -10/Materials | Discovered new exit (range 10) 654 | -10/Materials | Central database locked down 1077 | -10/Materials | Discovered new exit (range 5) 1151 | -10/Materials | Prayed at D.C.S.S. Altar Unit 1224 | -10/Materials | Entered another Materials area 1224 | -9/Materials | Evolved 2 slots: Propulsion x1, Utility x1 1386 | -9/Materials | Mass support permanently improved by X0-1V1 (+6; -200 max core) 1404 | -9/Materials | X0-1V1 sent allied G-34 Mercenary (x3) 1441 | -9/Materials | Lost 3 allies 1488 | -9/Materials | Lost 5 parts (1p3n1u) 1497 | -9/Materials | Core integrity fell below 50% 1740 | -9/Materials | X0-1V1 enhanced Transport squad support 1785 | -9/Materials | Central database locked down 1882 | -9/Materials | Core integrity fell below 20% 1899 | -9/Materials | Core integrity restored by X0-1V1 (+52) 1900 | -9/Materials | Identified exit to Materials 1900 | -9/Materials | X0-1V1 revealed exit location to -8/Materials 1918 | -9/Materials | Destroyed by H-55 Commando with Gauss Rifle Last Messages --------------- 01859_ K-01 Serf collects debris. 01865_ G-34 Mercenary destroyed. 01867_ K-01 Serf collects debris. 01868_ K-01 Serf destroyed. 01874_ X0-1V1 stares into the ether. H-55 Commando form shifts and blurs. G-47 Trooper form shifts and blurs. 01878_ W-16 Scout sends out distress signal. 01894_ Destroyed Heat Sink. 01894_ G-34 Mercenary system corrupted by crushing effect. 01895_ G-34 Mercenary system terminally corrupted. 01899_ X0-1V1: "See? It buffs right out!" (+52 core integrity) 01900_ X0-1V1: "I guarantee there's even more fun over that way." 01900_ EXIT=REVEALED: MATERIALS 01912_ Slug penetrates Wall. 01915_ Lgt. Treads+ destroyed. 01917_ Penetrated by Slug. 01917_ H-55 Commando destroyed. 01918_ Slug penetrates Wall. 01918_ X0-1V1 giggles madly! Map ----- +----------------------------------------------------+ | ???????????????????????????# #??????????##### | | ???????????????????######??# #??????????# # | | ????????????? ##### ?## ############ + | | ?????????????? ?# # | | ??????????????? T ?# # | | ????????????????? ?# # | | ???????????????????# ?# ########### # | | ?????????????######## ### %#? ## ###### | | ??????????? # ] ## | | ??????????? *%= # ## | | ???????????"" """ """ "" + """ ## | | ???????????"" """ """ "" # ! """ ###+#+##### | | ???????? """ """ """ """ # """ ??# #? | | ???????? *%! #? """ ??# [ "" #? | | ??????? = #? ??# """#? | | ??????? #?? #?# ! S"#? | | ?????????# h #??#######?# #? | | ?????????## #######Y########??????????# ! = #? | | ??????????# ????# % #?????????????########? | | ??????????+??????# u #?????????????????????? | | ?????????????????# [ #?????????????????????? | | ?????????????????# #?????????????????????? | | ?????????????????# #?????????????????????? | | ?????????????????# #?????????????????????? | | ?????????????????# #?????????????????????? | | ?????????????????# *[@ #?????????????????????? | | ?????????????????### ""#+###?????????????????????? | | ???????????????????#S""#%#???????????????????????? | | ???????????????????#"" # #???????????????????????? | | ???????????????????##### #???????????????????????? | | ???????????????????????# ???????????????????????? | | ???????????????????????# ???????????????????????? | | ???????????????????????? ???????????????????????? | | ???????????????????????? ???????????????????????? | | ???????????????????????? ???????????????????????? | | ???????????????????????? ??????????????????????? | | ???????????????????????? ??????????????????????? | | ????????????????????????##???????????????????????? | | ?????????????????????????????????????????????????? | | ?????????????????????????????????????????????????? | | ?????????????????????????????????????????????????? | | ?????????????????????????????????????????????????? | | ?????????????????????????????????????????????????? | | ?????????????????????????????????????????????????? | | | | | | | | | | | | | +----------------------------------------------------+ Best States ------------- Heat Dissipation 28 Energy Generation 14 Energy Capacity 265 Matter Stores 409 Matter Capacity 900 Sight Range 16 Terrain Scan Density 10 Evasion (%) 55 Recoil Reduction 2 Item Schematics ----------------- None Robot Schematics ------------------ None Fabricated ------------ Nothing Repaired ---------- Nothing Studied --------- Lgt. Treads | -9/Materials | Hacked Alien Tech Used ----------------- None Achievements -------------- None Challenges ------------ None Game ------ Seed AntimissileLauncherHammer Manual? 0 Play Time 00:15:51 Cumulative 332.3 hours Start 2026.06.24 @ 23:02:24 End 2026.06.24 @ 23:20:56 Sessions 1 Manual Loads 0 Difficulty Rogue Special Mode None Game No. 693 Rogue 693 Adventurer 0 Explorer 0 Win Type - Total 22 Types 15/0/4/2/1/0/0/0/0/0 Lore% 81 Gallery% 70 Achievement% 52 Wizard Run 0 Options --------- Layout 0 ASCII 0 Keyboard 0 Movement Numpad Keybinds 0 Fullscreen 2 Font 18/Terminus Map View 76x50 Zoom Use 0% Tactical HUD 1 Map Filters NONE Filters SATURATION(100) Steam 1 RUN: bef254b8-a0df-446a-a1d6-be80a0cdc9a6